bitfinex/quotes_ETHUSD_20230403
["timestamp","ask_amount","ask_price","bid_price","bid_amount"]
[1680513463430,1.10647785,1813.0,1812.9,0.19]
[1680513465050,0.10647785,1813.0,1812.9,0.19]
[1680513465360,0.10647785,1813.0,1812.9,0.4658]
[1680513465934,0.10647785,1813.0,1812.9,6.8174]
[1680513466138,0.10647785,1813.0,1812.9,7.39698371]
[1680513467439,0.10647785,1813.0,1812.9,6.84538371]
[1680513469142,0.10647785,1813.0,1812.9,7.39698371]
[1680513470942,0.10647785,1813.0,1812.9,6.84538371]
[1680513472646,1.32347785,1813.0,1812.9,0.192]
[1680513472846,1.32347785,1813.0,1812.9,0.19]
[1680513475580,1.32347785,1813.0,1812.9,0.4658]
[1680513475765,0.10647785,1813.0,1812.9,6.84338371]
[1680513475959,0.10647785,1813.0,1812.9,7.39698371]
[1680513476351,0.10647785,1813.0,1812.9,8.22391712]
[1680513478464,0.10337252,1813.0,1812.9,8.22391712]
[1680513480415,0.10337252,1813.0,1812.9,11.30045113]
[1680513481183,0.10337252,1813.0,1812.9,14.30045113]
[1680513482614,0.10337252,1813.0,1812.9,14.53045113]
[1680513483514,0.10337252,1813.0,1812.9,15.68555899]
[1680513485693,0.10337252,1813.0,1812.9,14.81920855]
[1680513486379,0.10337252,1813.0,1812.9,15.10789155]
[1680513487524,0.10337252,1813.0,1812.9,13.66410069]
[1680513487856,0.10337252,1813.0,1812.9,15.394095]
[1680513488207,0.10337252,1813.0,1812.9,13.66410069]
[1680513488395,0.10337252,1813.0,1812.9,15.394095]
[1680513488593,0.10337252,1813.0,1812.9,13.66410069]
[1680513489135,0.10337252,1813.0,1812.9,15.394095]
[1680513489306,0.10337252,1813.0,1812.9,13.66410069]
[1680513489695,0.10337252,1813.0,1812.9,15.394095]
[1680513490138,0.10337252,1813.0,1812.9,13.66410069]
[1680513493292,0.10337252,1813.0,1812.9,10.44121292]
[1680513493520,0.10337252,1813.0,1812.9,7.15364564]
[1680513493707,0.10337252,1813.0,1812.9,8.29615702]
[1680513493907,0.10337252,1813.0,1812.9,7.42944564]
[1680513494125,0.10337252,1813.0,1812.9,7.42344564]
[1680513494291,0.10337252,1813.0,1812.9,6.8587402]
[1680513496218,0.10337252,1813.0,1812.9,6.6687402]
[1680513496417,0.10337252,1813.0,1812.9,6.8587402]
[1680513496625,0.10337252,1813.0,1812.9,0.8687402]
[1680513496825,0.10337252,1813.0,1812.9,0.8667402]
[1680513497433,0.10337252,1813.0,1812.9,11.91250675]
[1680513497646,0.10337252,1813.0,1812.9,22.73245017]
[1680513499236,0.10337252,1813.0,1812.9,22.73845017]
[1680513503183,0.10337252,1813.0,1812.9,24.36204079]
[1680513503386,0.10006417,1813.0,1812.9,26.34936387]
[1680513505165,0.10006417,1813.0,1812.9,16.7155055]
[1680513505495,0.10006417,1813.0,1812.9,13.1044]
[1680513505687,0.10006417,1813.0,1812.9,7.43447902]
[1680513505896,0.12259851,1813.0,1812.9,0.86756251]
[1680513506184,2.91674851,1813.0,1812.8,0.57706072]
[1680513506487,1.0,1812.8,1812.6,0.57706072]
[1680513506659,1.006,1812.8,1812.6,0.57706072]
[1680513507104,0.006,1812.8,1812.6,0.57706072]
[1680513507419,0.1273,1812.8,1812.6,0.57706072]
[1680513507584,0.1273,1812.8,1812.7,0.19]
[1680513507772,0.006,1812.8,1812.7,0.27583]
[1680513507972,0.006,1812.8,1812.7,0.85289072]
[1680513508628,0.006,1812.8,1812.7,0.86556251]
[1680513509281,0.006,1812.9,1812.7,0.86556251]
[1680513509481,0.006,1812.9,1812.8,0.57703727]
[1680513509482,0.23830642,1812.9,1812.8,0.57703727]
[1680513511281,0.006,1812.9,1812.8,0.57703727]
[1680513511913,0.006,1812.9,1812.8,0.76703727]
[1680513512118,0.006,1812.9,1812.8,0.85284727]
[1680513512316,0.006,1812.9,1812.8,0.57703727]
[1680513513833,0.006,1812.9,1812.8,0.85284727]
[1680513514026,0.006,1812.9,1812.8,2.23192727]
[1680513514232,0.006,1812.9,1812.8,2.69773727]
[1680513514479,0.006,1812.9,1812.8,9.36329978]
[1680513514649,0.10606417,1813.0,1812.8,7.68500251]
[1680513514850,0.10606417,1813.0,1812.8,8.26200412]
[1680513515155,0.10606417,1813.0,1812.8,7.71037412]
[1680513515564,0.10606417,1813.0,1812.8,6.84481161]
[1680513515959,0.10606417,1813.0,1812.8,6.56900161]
[1680513516267,0.10606417,1813.0,1812.9,0.76700161]
[1680513516465,0.10606417,1813.0,1812.9,0.57700161]
[1680513516763,0.10606417,1813.0,1812.9,0.76700161]
[1680513517062,0.10606417,1813.0,1812.8,0.76900161]
[1680513517261,0.10606417,1813.0,1812.8,0.76700161]
[1680513517460,0.10606417,1813.0,1812.8,1.63256412]
[1680513517611,0.10606417,1813.0,1812.7,1.20663546]
[1680513517816,0.10006417,1813.0,1812.8,0.19]
[1680513518091,0.10006417,1813.0,1812.8,0.096]
[1680513518278,0.10006417,1813.0,1812.8,0.37181]
[1680513518415,0.10006417,1813.0,1812.8,0.096]
[1680513518622,0.10006417,1813.0,1812.8,0.37181]
[1680513518922,0.10006417,1813.0,1812.8,0.096]
[1680513519132,0.10006417,1813.0,1812.8,0.37181]
[1680513520432,0.10006417,1813.0,1812.8,0.096]
[1680513521048,0.24402402,1813.0,1812.7,0.96156251]
[1680513521260,0.24402402,1813.0,1812.7,0.86556251]
[1680513521630,0.24402402,1813.0,1812.6,0.96156251]
[1680513521861,0.24402402,1813.0,1812.7,0.86556251]
[1680513522066,1.45302402,1813.0,1812.7,0.86556251]
[1680513522264,0.1453024,1812.9,1812.7,0.86556251]
[1680513522465,0.1453024,1812.9,1812.6,0.86556251]
[1680513523178,0.1453024,1812.9,1812.6,0.96156251]
[1680513523386,1.207,1812.8,1812.6,0.86556251]
[1680513523587,1.41008,1812.7,1812.4,0.86556251]
[1680513523806,1.207,1812.6,1812.3,0.86556251]
[1680513527199,1.207,1812.6,1812.2,8.19308689]
[1680513527705,1.207,1812.6,1812.3,0.57656345]
[1680513528308,1.205,1812.4,1812.1,1.44154148]
[1680513528467,1.205,1812.4,1811.9,30.7819]
[1680513528468,3.98088728,1812.3,1812.2,0.002]
[1680513528669,3.98088728,1812.3,1811.8,0.4575493]
[1680513528670,13.38615162,1812.3,1811.8,0.1]
[1680513528914,1.207,1811.9,1811.8,0.1]
[1680513529211,3.02889,1811.9,1811.8,0.1]
[1680513529429,6.05142434,1811.9,1811.8,0.1]
[1680513529709,6.05942434,1811.9,1811.8,0.1]
[1680513530111,14.64719162,1811.9,1811.8,0.1]
[1680513530309,15.85619162,1811.9,1811.8,0.1]
[1680513530716,6.06142434,1811.9,1811.8,0.1]
[1680513530920,1.4594,1811.9,1811.8,0.1]
[1680513531217,1.65056,1811.9,1811.8,0.1]
[1680513531573,2.03689,1811.9,1811.8,0.1]
[1680513532611,3.25389,1811.9,1811.8,0.1]
[1680513533271,11.84165728,1811.9,1811.8,0.1]
[1680513533477,11.84365728,1811.9,1811.8,0.1]
[1680513533781,5.65732728,1811.9,1811.8,0.1]
[1680513534006,6.04365728,1811.9,1811.8,0.1]
[1680513534322,9.04365728,1811.9,1811.8,0.1]
[1680513535513,9.06619162,1811.9,1811.8,0.1]
[1680513537203,14.86619162,1811.9,1811.8,0.1]
[1680513537408,22.86619162,1811.9,1811.8,0.1]
[1680513537986,14.27842434,1811.9,1811.8,0.1]
[1680513538592,6.27842434,1811.9,1811.8,0.1]
[1680513539914,5.06942434,1811.9,1811.8,0.1]
[1680513540636,4.68309434,1811.9,1811.8,0.1]
[1680513540824,1.4654,1811.9,1811.8,0.1]
[1680513540982,1.65256,1811.9,1811.8,0.1]
[1680513541821,0.2424,1811.9,1811.8,0.1]
[1680513542022,1.207,1811.9,1811.8,0.1]
[1680513543240,1.213,1811.9,1811.8,0.1]
[1680513547795,1.79249,1811.9,1811.8,0.1]
[1680513547972,1.78649,1811.9,1811.8,0.1]
[1680513548180,1.79249,1811.9,1811.8,0.1]
[1680513548386,2.270004,1811.9,1811.8,0.1]
[1680513549847,1.057004,1811.9,1811.8,0.1]
[1680513550048,2.274004,1811.9,1811.8,0.1]
[1680513551288,15.09330562,1811.9,1811.8,0.1]
[1680513551582,6.50753834,1811.9,1811.8,0.1]
[1680513554877,5.29053834,1811.9,1811.8,0.1]
[1680513555086,8.07830562,1811.9,1811.8,0.1]
[1680513555970,9.29530562,1811.9,1811.8,0.1]
[1680513556709,8.07830562,1811.9,1811.8,0.1]
[1680513557597,13.87830562,1811.9,1811.8,0.1]
[1680513561102,14.42387164,1811.9,1811.8,0.1]
[1680513562301,9.20543664,1811.9,1811.8,0.1]
[1680513562502,10.41243664,1811.9,1811.8,0.1]
[1680513562675,10.99192664,1811.9,1811.8,0.1]
[1680513564710,13.99192664,1811.9,1811.8,0.1]
[1680513565785,18.58212664,1811.9,1811.8,0.1]
[1680513565992,19.79012664,1811.9,1811.8,0.1]
[1680513566305,1.0,1811.8,1811.7,0.1]
[1680513566609,11.32800994,1811.8,1811.7,0.1]
[1680513566782,11.33000994,1811.8,1811.7,0.1]
[1680513567796,6.76953266,1811.8,1811.7,0.1]
[1680513567996,3.002,1811.8,1811.7,0.1]
[1680513568207,0.19317,1811.8,1811.7,0.1]
[1680513568410,0.002,1811.9,1811.7,0.1]
[1680513568608,0.19315,1812.0,1811.7,0.12253695]
[1680513569618,0.57946,1812.0,1811.7,0.1]
[1680513569922,0.57952,1811.8,1811.7,0.1]
[1680513572091,1.78852,1811.8,1811.7,0.1]
[1680513573185,1.40217,1811.8,1811.7,0.1]
[1680513573385,1.209,1811.8,1811.7,0.1]
[1680513574700,1.40217,1811.8,1811.7,0.1]
[1680513575929,0.19317,1811.8,1811.7,0.1]
[1680513576909,3.19317,1811.9,1811.7,0.1]
[1680513577087,0.19317,1811.9,1811.7,0.1]
[1680513577510,4.40816,1812.0,1811.7,0.1]
[1680513577696,4.215,1812.0,1811.7,0.1]
[1680513577898,4.215,1812.0,1811.7,0.83757361]
[1680513578240,1.215,1812.0,1811.7,0.83757361]
[1680513578747,3.002,1812.1,1811.7,0.83757361]
[1680513579038,3.0,1812.1,1811.7,0.83757361]
[1680513579242,3.19314,1812.1,1811.7,0.84357361]
[1680513579648,3.0,1812.1,1811.7,0.84357361]
[1680513579802,3.19314,1812.1,1811.7,0.84357361]
[1680513580002,3.19314,1812.1,1811.7,0.27041334]
[1680513580229,3.19314,1812.1,1811.7,0.84357361]
[1680513580541,3.19314,1812.1,1811.7,0.86611056]
[1680513580916,0.19314,1812.1,1811.7,0.86611056]
[1680513581318,0.19314,1812.1,1811.7,0.29295029]
[1680513581899,1.205,1812.0,1811.7,0.106]
[1680513582126,0.19316,1811.9,1811.7,0.106]
[1680513583362,1.39816,1812.0,1811.7,0.106]
[1680513583559,1.39816,1812.0,1811.7,0.1]
[1680513584827,1.205,1812.0,1811.7,0.1]
[1680513585036,1.3255,1812.0,1811.7,0.1]
[1680513587872,1.51865,1812.0,1811.7,0.1]
[1680513592098,1.205,1811.9,1811.7,0.1]
[1680513592258,1.39816,1811.9,1811.7,0.1]
[1680513592453,1.205,1811.9,1811.7,0.1]
[1680513592693,1.550026,1811.9,1811.7,0.1]
[1680513593383,1.356866,1811.9,1811.7,0.1]
[1680513595315,1.550026,1811.9,1811.7,0.1]
[1680513596008,1.356866,1811.9,1811.7,0.1]
[1680513596208,1.550026,1811.9,1811.7,0.1]
[1680513596506,0.3481726,1811.8,1811.7,0.1]
[1680513596713,0.19317,1811.8,1811.7,0.1]
[1680513596880,0.57952,1811.8,1811.7,0.1]
[1680513600103,0.002,1811.9,1811.7,0.1]
[1680513600307,5.97749722,1812.2,1811.7,0.1]
[1680513600516,0.19315,1812.1,1811.8,0.0225357]
[1680513601608,0.57944,1812.1,1811.8,0.0225357]
[1680513601828,3.57944,1812.1,1811.8,0.0225357]
[1680513602401,4.69221045,1812.1,1811.8,0.0225357]
[1680513603114,4.30592045,1812.1,1811.8,0.0225357]
[1680513604910,4.69221045,1812.1,1811.8,0.0225357]
[1680513606411,4.30592045,1812.1,1811.8,0.0225357]
[1680513606640,4.69221045,1812.1,1811.7,0.106]
[1680513607028,1.69221045,1812.1,1811.7,0.106]
[1680513608635,0.36237105,1812.0,1811.7,0.106]
[1680513610503,3.53644833,1812.0,1811.7,0.106]
[1680513610725,2.78776728,1811.9,1811.7,0.106]
[1680513610934,0.19317,1811.8,1811.7,0.1]
[1680513611139,0.41979373,1811.8,1811.7,0.1]
[1680513612806,1.38022105,1812.0,1811.7,0.1]
[1680513613003,0.16922105,1812.0,1811.7,0.1]
[1680513613309,2.78776728,1812.0,1811.7,0.1]
[1680513613505,1.207,1811.9,1811.7,0.1]
[1680513613843,1.40017,1811.9,1811.7,0.1]
[1680513614943,1.207,1811.9,1811.7,0.1]
[1680513615105,1.40016,1811.9,1811.7,0.1]
[1680513615441,2.43778373,1811.9,1811.7,0.1]
[1680513616929,2.24462373,1811.9,1811.7,0.1]
[1680513617246,2.43778373,1811.9,1811.7,0.1]
[1680513618530,2.24462373,1811.9,1811.7,0.1]
[1680513618732,2.43778373,1811.9,1811.7,0.1]
[1680513618946,0.002,1812.0,1811.7,0.1]
[1680513619250,3.19314,1812.1,1811.7,0.1]
[1680513619551,5.78776728,1812.1,1811.7,0.1]
[1680513619707,5.78976728,1812.1,1811.7,0.1]
[1680513620248,3.002,1812.1,1811.7,1.0546453]
[1680513620455,3.0,1812.1,1811.7,1.0546453]
[1680513621251,3.0,1812.1,1811.7,1.0606453]
[1680513621718,5.96749722,1812.2,1811.7,1.0606453]
[1680513621924,8.7552645,1812.2,1811.7,1.0606453]
[1680513622123,7.5482645,1812.2,1811.8,0.10606453]
[1680513622724,4.76049722,1812.2,1811.8,0.38202453]
[1680513622959,4.75849722,1812.2,1811.8,0.38202453]
[1680513623811,4.75849722,1812.2,1811.8,0.9551848]
[1680513624226,4.76449722,1812.2,1811.8,0.95281997]
[1680513625756,4.76449722,1812.2,1811.8,0.3796597]
[1680513626054,0.14279722,1812.2,1811.8,1.50474997]
[1680513626228,0.13679722,1812.2,1811.9,0.150475]
[1680513626428,0.13679722,1812.2,1811.9,0.426415]
[1680513626811,0.13679722,1812.2,1811.8,0.95280997]
[1680513627016,0.13679722,1812.2,1811.9,0.27595]
[1680513627317,0.13679722,1812.2,1811.8,0.84912027]
[1680513627710,0.13679722,1812.2,1811.8,0.57316027]
[1680513627913,0.13679722,1812.2,1811.8,0.84912027]
[1680513628147,0.13679722,1812.2,1811.8,2.67014081]
[1680513630331,0.13679722,1812.2,1811.8,1.82102054]
[1680513630542,0.13679722,1812.2,1811.8,2.09698054]
[1680513631357,0.13679722,1812.2,1811.8,1.82102054]
[1680513631555,0.13679722,1812.2,1811.8,0.27596]
[1680513632279,0.13679722,1812.2,1811.7,17.65824537]
[1680513633281,0.13679722,1812.2,1811.7,16.79327225]
[1680513634647,0.13679722,1812.2,1811.7,17.65824537]
[1680513634843,0.13679722,1812.2,1811.7,16.79327225]
[1680513635890,9.3039645,1812.2,1811.7,11.27939722]
[1680513636050,9.3119645,1812.2,1811.7,16.40736027]
[1680513636382,8.9256945,1812.2,1811.7,16.40736027]
[1680513637346,1.207,1812.1,1811.7,16.40736027]
[1680513637553,0.1207,1812.0,1811.7,16.40736027]
[1680513637751,0.1207,1812.0,1811.7,15.8342]
[1680513638176,0.1207,1812.0,1811.7,16.40736027]
[1680513638376,0.1207,1812.0,1811.7,15.8342]
[1680513638580,0.1207,1812.0,1811.7,16.40736027]
[1680513638787,2.78776728,1811.9,1811.7,0.67516027]
[1680513638988,3.07861401,1811.9,1811.7,0.67316027]
[1680513639186,3.27177401,1811.9,1811.7,0.1]
[1680513642466,9.45810401,1811.9,1811.7,0.1]
[1680513642680,9.46010401,1811.9,1811.7,0.1]
[1680513643289,10.67710401,1811.9,1811.7,0.1]
[1680513643489,1.0677104,1811.8,1811.7,0.1]
[1680513643701,4.43499768,1811.8,1811.7,0.1]
[1680513647002,12.23070768,1811.8,1811.7,0.1]
[1680513647205,15.22670768,1811.8,1811.7,0.1]
[1680513647804,15.23270768,1811.8,1811.7,0.1]
[1680513648111,15.46270768,1811.8,1811.7,0.1]
[1680513648269,16.32613229,1811.8,1811.7,0.1]
[1680513648699,15.46270768,1811.8,1811.7,0.1]
[1680513648892,20.44500768,1811.8,1811.7,0.09679624]
[1680513650178,24.30856768,1811.8,1811.7,0.09679624]
[1680513652002,24.85156243,1811.8,1811.7,0.09679624]
[1680513652208,26.06856243,1811.8,1811.7,0.09679624]
[1680513653072,22.20500243,1811.8,1811.7,0.09679624]
[1680513654582,22.83761045,1811.8,1811.7,0.09679624]
[1680513655396,23.11339907,1811.8,1811.7,0.09679624]
[1680513656113,8.81143,1811.7,1811.6,0.1]
[1680513656320,19.80772819,1811.7,1811.6,0.1]
[1680513656492,20.44033621,1811.7,1811.6,0.1]
[1680513656909,20.71612483,1811.7,1811.6,0.1]
[1680513657245,20.21612483,1811.7,1811.6,0.1]
[1680513659302,21.97611361,1811.7,1811.6,0.1]
[1680513659686,20.77111361,1811.7,1811.6,0.1]
[1680513660821,19.77111361,1811.7,1811.6,0.1]
[1680513661027,18.73533621,1811.7,1811.6,0.1]
[1680513661240,16.17084819,1811.7,1811.6,0.1]
[1680513662906,15.94084819,1811.7,1811.6,0.1]
[1680513666600,19.66963998,1811.7,1811.6,0.1]
[1680513666811,20.302248,1811.7,1811.6,0.1]
[1680513667013,19.54225922,1811.7,1811.6,0.1]
[1680513668133,18.73533621,1811.7,1811.6,0.1]
[1680513670007,16.80345621,1811.7,1811.6,0.1]
[1680513671544,16.80345621,1811.7,1811.5,0.063168]
[1680513671845,14.4751129,1811.6,1811.5,0.063168]
[1680513672012,15.0566929,1811.6,1811.5,0.063168]
[1680513673204,13.2701129,1811.6,1811.5,0.063168]
[1680513673448,5.78976728,1811.6,1811.5,0.063168]
[1680513673619,3.002,1811.6,1811.5,0.063168]
[1680513673807,1.95911251,1811.7,1811.5,0.063168]
[1680513674013,7.74487979,1811.7,1811.5,0.063168]
[1680513674214,7.74687979,1811.7,1811.5,0.063168]
[1680513674921,8.13324979,1811.7,1811.5,0.063168]
[1680513675245,4.95911251,1811.7,1811.5,0.063168]
[1680513675423,4.95711251,1811.7,1811.5,0.063168]
[1680513676233,8.13124979,1811.7,1811.5,0.063168]
[1680513676433,9.58087424,1811.7,1811.5,0.063168]
[1680513676734,8.58776728,1811.6,1811.5,0.063168]
[1680513677053,12.16934728,1811.6,1811.5,0.063168]
[1680513678008,11.78295728,1811.6,1811.5,0.063168]
[1680513681269,13.7074367,1811.6,1811.5,0.063168]
[1680513685755,8.78295728,1811.6,1811.5,0.063168]
[1680513686254,8.58976728,1811.6,1811.5,0.063168]
[1680513686458,8.78295728,1811.6,1811.5,0.063168]
[1680513687442,8.58976728,1811.6,1811.5,0.063168]
[1680513687649,8.78295728,1811.6,1811.5,0.063168]
[1680513687946,3.84445526,1811.6,1811.5,0.063168]
[1680513688177,2.98095728,1811.6,1811.5,0.063168]
[1680513688393,2.78776728,1811.6,1811.5,0.063168]
[1680513688592,8.58776728,1811.6,1811.5,0.063168]
[1680513688794,2.78976728,1811.6,1811.5,0.063168]
[1680513688962,2.78776728,1811.6,1811.5,0.063168]
[1680513689374,1.76592251,1811.7,1811.5,0.063168]
[1680513689559,7.55168979,1811.7,1811.5,0.063168]
[1680513689891,7.55368979,1811.7,1811.5,0.063168]
[1680513691575,11.74176728,1811.6,1811.2,0.1]
[1680513691755,7.017,1811.3,1811.2,0.1]
[1680513692094,9.17545728,1811.3,1811.2,0.1]
[1680513692296,12.17545728,1811.3,1811.2,0.1]
[1680513692497,13.51470301,1811.3,1811.2,0.1]
[1680513695966,13.51270301,1811.3,1810.9,0.002]
[1680513696164,13.51270301,1811.3,1810.5,1.53591933]
[1680513696165,8.58776728,1811.0,1810.5,0.67316027]
[1680513696464,5.8,1810.7,1810.3,0.35276116]
[1680513696698,9.94090728,1810.6,1810.2,10.5887]
[1680513696858,9.94890728,1810.6,1810.2,10.5887]
[1680513697058,3.0,1810.5,1810.2,10.5887]
[1680513697379,0.57997,1810.4,1810.2,10.5887]
[1680513697575,0.58597,1810.4,1810.2,10.5887]
[1680513697766,0.58597,1810.4,1810.2,0.102]
[1680513697962,0.57997,1810.4,1810.2,0.1]
[1680513700364,2.78776728,1810.3,1810.2,0.1]
[1680513700565,3.36776728,1810.3,1810.2,0.1]
[1680513700761,3.37376728,1810.3,1810.2,0.1]
[1680513701103,0.586,1810.3,1810.2,0.1]
[1680513701302,0.58,1810.3,1810.2,0.1]
[1680513702065,0.6386,1810.3,1810.2,0.1]
[1680513702802,0.58,1810.3,1810.2,0.1]
[1680513706181,3.36776728,1810.3,1810.2,0.1]
[1680513706388,6.37376728,1810.3,1810.2,0.1]
[1680513706572,6.37576728,1810.3,1810.2,0.1]
[1680513707878,3.20133,1810.3,1810.2,0.1]
[1680513708074,0.006,1810.3,1810.2,0.1]
[1680513708286,0.19333,1810.3,1810.2,0.1]
[1680513709422,0.58,1810.3,1810.2,0.1]
[1680513710617,3.42636728,1810.3,1810.2,0.1]
[1680513711594,3.43236728,1810.3,1810.2,0.1]
[1680513711999,3.42636728,1810.3,1810.2,0.1]
[1680513712208,3.43236728,1810.3,1810.2,0.1]
[1680513713104,12.09115939,1810.3,1810.2,0.1]
[1680513713286,12.09915939,1810.3,1810.2,0.1]
[1680513715917,17.89915939,1810.3,1810.2,0.1]
[1680513716712,19.33615939,1810.3,1810.2,0.1]
[1680513720704,19.33015939,1810.3,1810.2,0.09699877]
[1680513722605,0.87867842,1810.3,1810.2,0.09699877]
[1680513722822,0.55224125,1810.6,1810.2,2.43099877]
[1680513722823,0.19931,1810.6,1810.2,2.43099877]
[1680513723024,0.004,1810.6,1810.3,3.03086716]
[1680513723229,0.002,1811.0,1810.5,4.00476728]
[1680513723543,0.002,1811.0,1810.9,5.8]
[1680513723721,0.57648346,1811.3,1811.0,1.0]
[1680513723927,0.57648346,1811.3,1811.2,2.217]
[1680513724245,0.11000001,1811.4,1811.1,0.02254442]
[1680513724544,0.11000001,1811.4,1811.1,1.02254442]
[1680513724723,0.11000001,1811.4,1811.2,1.217]
[1680513725045,0.11000001,1811.4,1811.3,6.36300921]
[1680513725244,1e-08,1811.4,1811.3,13.50953193]
[1680513725444,1e-08,1811.4,1811.3,13.55753193]
[1680513725599,1e-08,1811.4,1811.3,13.50953193]
[1680513725800,1e-08,1811.4,1811.3,16.29729921]
[1680513726120,1e-08,1811.4,1811.3,25.14729921]
[1680513726424,1e-08,1811.4,1811.3,25.15129921]
[1680513726627,1e-08,1811.4,1811.3,22.15129921]
[1680513728003,1e-08,1811.4,1811.3,22.37529921]
[1680513728572,1e-08,1811.4,1811.3,11.30953193]
[1680513728738,1e-08,1811.4,1811.3,1.63628193]
[1680513728912,1e-08,1811.4,1811.3,1.63428193]
[1680513729112,1e-08,1811.4,1811.3,1.64028193]
[1680513729650,1e-08,1811.4,1811.3,2.64028193]
[1680513730053,1e-08,1811.4,1811.3,2.63428193]
[1680513733524,1e-08,1811.4,1811.3,3.18636193]
[1680513737081,1e-08,1811.4,1811.3,2.18636193]
[1680513737497,1e-08,1811.4,1811.3,3.18636193]
[1680513737666,1e-08,1811.4,1811.3,3.06466193]
[1680513737853,1e-08,1811.4,1811.2,1.225]
[1680513738184,1e-08,1811.4,1811.0,6.86477]
[1680513738748,1e-08,1811.4,1811.0,1.50107]
[1680513738943,1e-08,1811.4,1811.0,1.49907]
[1680513739364,1e-08,1811.4,1811.0,1.49307]
[1680513741489,1e-08,1811.4,1811.2,1.215]
[1680513743834,1e-08,1811.4,1811.1,1.23954442]
[1680513744142,0.19323,1811.3,1811.1,0.02254442]
[1680513744287,0.057967,1811.3,1810.9,10.5116]
[1680513744484,0.251197,1811.3,1810.9,10.5116]
[1680513744684,3.03896428,1811.3,1810.9,10.5116]
[1680513744883,3.42542428,1811.3,1810.9,0.008]
[1680513745131,0.19325,1811.1,1810.7,1.217]
[1680513745334,0.53579243,1811.2,1810.7,1.217]
[1680513745734,0.53192869,1811.2,1810.7,1.217]
[1680513745915,3.31969597,1811.2,1810.7,1.217]
[1680513746084,3.31969597,1811.2,1810.6,1.223]
[1680513746085,3.70617597,1811.2,1810.6,1.223]
[1680513746281,0.3706176,1811.1,1810.6,1.24555063]
[1680513746488,0.5638676,1811.1,1810.6,1.24555063]
[1680513746801,0.3706176,1811.1,1810.6,1.52170063]
[1680513747897,3.35163488,1811.1,1810.6,0.006]
[1680513748194,3.36751728,1811.1,1810.6,0.006]
[1680513748523,3.57979,1811.0,1810.6,0.006]
[1680513749887,2.78776728,1810.9,1810.6,0.006]
[1680513750088,2.98104728,1810.9,1810.5,0.02255188]
[1680513750395,3.42472401,1810.9,1810.5,0.02255188]
[1680513750610,3.61799401,1810.9,1810.5,0.02255188]
[1680513751015,0.63695673,1810.9,1810.5,0.02255188]
[1680513751212,3.0,1811.0,1810.5,0.29871188]
[1680513751419,3.19525,1811.1,1810.5,0.85704188]
[1680513751731,3.0,1811.0,1810.5,0.85704188]
[1680513752037,3.0,1811.0,1810.5,1.64464607]
[1680513752937,2.78976728,1811.1,1810.6,8.58776728]
[1680513752938,0.002,1811.1,1810.6,8.58776728]
[1680513753136,1e-08,1811.4,1810.7,7.03954939]
[1680513753338,5.81156729,1811.4,1810.7,7.86993939]
[1680513753521,5.81956729,1811.4,1810.7,7.86993939]
[1680513754102,5.81356729,1811.4,1810.7,7.87593939]
[1680513754632,3.0,1811.3,1810.7,7.87593939]
[1680513754817,0.00200001,1811.4,1810.7,8.87593939]
[1680513755132,3.00000001,1811.4,1810.7,8.87593939]
[1680513755328,1e-08,1811.4,1810.7,8.87593939]
[1680513755935,1e-08,1811.4,1810.7,19.91443939]
[1680513756136,1e-08,1811.4,1810.8,7.79144394]
[1680513756433,1e-08,1811.4,1810.9,0.82829]
[1680513757740,1e-08,1811.4,1810.9,0.83429]
[1680513758411,1.209,1811.1,1810.8,0.008]
[1680513758623,0.70068,1811.0,1810.8,0.006]
[1680513758836,0.31416,1811.0,1810.6,0.006]
[1680513759841,0.31416,1811.0,1810.5,0.006]
[1680513760044,0.70068,1811.0,1810.5,0.006]
[1680513761044,3.48844728,1811.0,1810.5,0.006]
[1680513762060,3.48844728,1811.0,1810.4,0.006]
[1680513762238,3.48844728,1811.0,1810.4,2.158358]
[1680513762437,3.48844728,1811.0,1810.4,1.882178]
[1680513762747,3.10192728,1811.0,1810.4,2.158348]
[1680513763458,3.48844728,1811.0,1810.4,1.882178]
[1680513765253,3.48844728,1811.0,1810.4,2.158358]
[1680513765453,3.48844728,1811.0,1810.4,1.882178]
[1680513765675,3.48844728,1811.0,1810.4,2.158358]
[1680513765840,3.48844728,1811.0,1810.4,1.882178]
[1680513766408,3.10192728,1811.0,1810.4,2.158358]
[1680513766690,3.10192728,1811.0,1810.4,1.882178]
[1680513767092,0.31059739,1811.0,1810.4,2.158348]
[1680513767300,0.19326,1811.0,1810.5,0.1882178]
[1680513767440,0.19326,1811.0,1810.5,0.1942178]
[1680513767641,0.57978,1811.0,1810.5,0.1942178]
[1680513768040,0.57978,1811.0,1810.5,0.1882178]
[1680513769443,0.002,1811.2,1810.8,5.8]
[1680513769742,1e-08,1811.4,1811.2,6.62818]
[1680513769941,1e-08,1811.4,1811.2,7.84718]
[1680513770786,1e-08,1811.4,1811.3,0.07054193]
[1680513770953,1e-08,1811.4,1811.3,14.14860596]
[1680513771292,1e-08,1811.4,1811.3,22.74712434]
[1680513771485,1e-08,1811.4,1811.3,19.68135706]
[1680513771650,1e-08,1811.4,1811.3,15.11110596]
[1680513772888,1e-08,1811.4,1811.3,15.10910596]
[1680513773044,1e-08,1811.4,1811.3,15.10510596]
[1680513774010,1e-08,1811.4,1811.3,18.46912434]
[1680513774156,1e-08,1811.4,1811.3,17.89287324]
[1680513774359,1e-08,1811.4,1811.3,17.89887324]
[1680513774587,1e-08,1811.4,1811.3,17.89287324]
[1680513777868,1e-08,1811.4,1811.3,15.10510596]
[1680513778785,1e-08,1811.4,1811.3,14.00093596]
[1680513779198,1e-08,1811.4,1811.3,14.00693596]
[1680513779890,1e-08,1811.4,1811.3,12.78993596]
[1680513781165,1e-08,1811.4,1811.3,12.23785596]
[1680513781363,1e-08,1811.4,1811.3,6.43785596]